{"text_format":"1","workbook":"xlsx","n_sheets":2,"sheets":["Sch Bus","Instructions"],"not_rendered":{"charts":0,"images":8,"macros":1,"external_links":1,"defined_names":6,"comments":0,"pivot_tables":0},"unopened":[],"bounds":{"document_bytes":16777216,"sheet_cells":100000,"rows_first":2000,"rows_last":500,"rows_between":2000,"halvings":0,"cell_chars":16384,"cell_head_chars":4096},"cells_cut":0,"cells_raw":0,"read":"whole","date_system":"1900"}

{"sheet":"Sch Bus","index":0,"n_rows":293,"n_cols":7,"rows_kept":293,"cut":false,"hidden":false,"merged":[[14,0,14,2],[16,0,16,3],[0,0,0,6],[6,0,6,2],[16,4,16,6],[10,4,10,6],[15,4,15,6],[14,4,14,6],[11,4,11,6],[12,4,12,6],[13,4,13,6],[6,4,6,6],[7,4,7,6],[8,4,8,6],[5,0,5,6]]}
["This file contains calculating fields.  Please see Instructions Tab below before using."]
[]
[]
[]
[]
["2021 Discounted Price Guide"]
[null,null,null,"Order Online at the CPS Marketplace: ","Email :  Key12Appleton@schoolspecialty.com"]
[null,null,null,"CatholicPurchasing.org","Phone:  1-888-388-3224, Option 7"]
[null,null,null,null,"Fax:  1-877-464-7196"]
["BILL TO:",null,null,null,"SHIP TO:"]
["#527856"]
["Catholic Purchasing Service"]
["580 Washington Street"]
["Newton, MA 02458"]
["PURCHASE ORDER # __________________",null,null,null,"SPECIAL INSTRUCTIONS:"]
[]
["All Items are NET priced.  No Further Discounts Apply"]
["TOTAL AMOUNT OF ORDER:",null,null,null,null,null,{"$f":"G293","v":0}]
["QTY\nORD","UOM","STOCK #","DESCRIPTION","LIST\n PRICE","YOUR\n PRICE","TOTAL PRICE"]
[null,null,null,"CAREER TECHNICAL EDUCATION - ELECTRICITY AND ELECTRONICS"]
[null,"EA","531970","Elenco Economy Analog Power Supply",248.79,174.15,{"$f":"IF(F21=\"\",0,A21*F21)","v":0}]
[null,null,null,"EARLY LEARNING - SCIENCE RESOURCES"]
[null,"EA","1440471","NewPath Learning Ecosystems, Food Chains, and Food Webs Laminated Poster - 23 x 35",27.69,19.38,{"$f":"IF(F23=\"\",0,A23*F23)","v":0}]
[null,null,null,"PHYSICAL EDUCATION - ORGANIZATION"]
[null,"PK","1384855","Frey Scientific Stopwatch, 100 min, 1/100th sec, GA-13 Battery, Pack of 12",33.99,23.79,{"$f":"IF(F25=\"\",0,A25*F25)","v":0}]
[null,null,null,"RESOURCES - MAPS/GLOBES"]
[null,"EA","070-7398","Blue Planet Rotating Illuminated Seasonal Globe",1922.69,1345.88,{"$f":"IF(F27=\"\",0,A27*F27)","v":0}]
[null,"EA","1294690","Economy Celestial Globe",162.69,113.88,0]
[null,null,null,"SAFETY AND SECURITY - FIRST AID/HEALTH SUPPLIES"]
[null,"EA","1451983","First Aid Station 113pc/25ppl 10x7x3 Wht",72.19,50.53,{"$f":"IF(F30=\"\",0,A30*F30)","v":0}]
[null,null,null,"SAFETY AND SECURITY - SECURITY"]
[null,"EA","1488340","Sellstrom Fire Blanket with Hanging Pouch, 6 L x 5 W ft",151.49,106.04,{"$f":"IF(F32=\"\",0,A32*F32)","v":0}]
[null,null,null,"SCIENCE EDUCATION - APPARATUS"]
[null,"EA","587818","Frey Scientific Brownlee Electrolysis Apparatus - With Jar",59.99,41.99,{"$f":"IF(F34=\"\",0,A34*F34)","v":0}]
[null,"EA","568868","Ginsberg Scientific Cloud Forming Apparatus",17.989999999999998,12.59,0]
[null,"EA","1296208","Science First Constant Speed Vehicle",30.29,21.2,0]
[null,"EA","527279","Science First Van de Graaff Generator",195.69,136.97999999999999,0]
[null,null,null,"SCIENCE EDUCATION - AQUARIA/TERRARIA"]
[null,"EA","190-0304","Frey Scientific Aquarium Gravel - 2 lbs",7.89,5.52,{"$f":"IF(F39=\"\",0,A39*F39)","v":0}]
[null,"EA","1540650","Penn-Plax Aquarium Rad Curved Corner Glass Kit, 10 Gallon",131.69,92.18,0]
[null,"EA","563366","Penn-Plax Fish Dip Net - 5 inches",2.4900000000000002,1.74,0]
[null,"EA","1540649","Vertex Aquarium",62.39,43.67,0]
[null,null,null,"SCIENCE EDUCATION - BALANCES/SCALES/WEIGHTS"]
[null,"EA","1487920","Adam Equipment Compact Digital Scale, 500 Gram Capacity, 0.1 Gram Readability",114.69,80.28,{"$f":"IF(F44=\"\",0,A44*F44)","v":0}]
[null,"EA","1017514","Frey Scientific Triple Beam Balance",122.69,85.88,0]
[null,"EA","1540240","Ohaus Balance Scout Backlit LCD, 220G X 0.01",479.99,335.99,0]
[null,"ST","1325749","Troemner Stainless Steel Double Hooked Weights - Set of 9",195.99,137.19,0]
[null,null,null,"SCIENCE EDUCATION - BURNERS/HOTPLATES/HEATERS"]
[null,"EA","571583","Corning Scholar 170 Hot Plate, 4 x 5 x 5 Inches, Dual Heat Shields",206.69,144.68,{"$f":"IF(F49=\"\",0,A49*F49)","v":0}]
[null,"EA","585213","Humboldt Tirrill Burner with Flame Stabilizer - for Natural Gas",65.989999999999995,46.19,0]
[null,null,null,"SCIENCE EDUCATION - CHEMICALS/TESTING/SUPPLIES"]
[null,"EA","030-9902","FOSS Start Right Water Conditioner, 2 oz",3.99,2.79,{"$f":"IF(F52=\"\",0,A52*F52)","v":0}]
[null,"EA","577623","Frey Scientific Acetic Acid, Glacial, 17.5 M, 500 mL, Reagent Grade",22.09,15.46,0]
[null,"EA","577653","Frey Scientific Acetone, 3.8 L, Reagent Grade",111.69,78.180000000000007,0]
[null,"EA","567974","Frey Scientific Benedict's Qualitative Solution, 1L, Lab Grade",11.39,7.97,0]
[null,"EA","1016726","Frey Scientific Bromothymol Blue 0.04% Aqueous Solution, 1L, Lab Grade",8.19,5.73,0]
[null,"EA","578241","Frey Scientific Calcium Chloride, 0.1 M Aqueous Solution, 500 mL, Lab Grade",8.89,6.22,0]
[null,"EA","567992","Frey Scientific Copper (II) Sulfate Pentahydrate Crystals, 500g, Lab Grade",22.99,16.09,0]
[null,"EA","580359","Frey Scientific Corn Starch, 500g, Lab Grade",10.49,7.34,0]
[null,"EA","578928","Frey Scientific Hydrochloric Acid, 36.5-38%, 2.5 L, Reagent Grade",110.19,77.13,0]
[null,"EA","578979","Frey Scientific Hydrogen Peroxide 30%, 500 mL, Reagent Grade",17.79,12.45,0]
[null,"PK","569867","Frey Scientific Litmus Test Paper - Pack of 12 Vials - 100 Strips per Vial - Blue",16.89,11.82,0]
[null,"EA","573162","Frey Scientific Magnesium Ribbon, 1/8 Inches x 75 Feet",6.19,4.33,0]
[null,"EA","1495524","Frey Scientific Marble Boiling Chips, White Chips, Lab Grade",5.99,4.1900000000000004,0]
[null,"EA","579540","Frey Scientific Nitric Acid, 68-70%, 500 mL, Reagent Grade",45.49,31.84,0]
[null,"EA","579624","Frey Scientific Phenolphthalein 1% Isopropyl Solution, 500 mL, Lab Grade",10.49,7.34,0]
[null,"PK","569885","Frey Scientific Phenylthiocarbamide Taste Paper - Pack of 12 Vials, 100 Strips per Vial",19.989999999999998,13.99,0]
[null,"EA","579990","Frey Scientific Silver Nitrate, 100g, Reagent ACS Grade",416.49,291.54000000000002,0]
[null,"EA","580080","Frey Scientific Sodium Carbonate, 500g, Reagent Grade",9.49,6.64,0]
[null,"EA","568097","Frey Scientific Sodium Chloride, 500g, Lab Grade",6.19,4.33,0]
[null,"EA","1440853","Frey Scientific Water Quality Saddle Bag - For 30 students",294.69,206.28,0]
[null,"EA","587052","Hydrion Brilliant pH Dip Stiks",19.29,13.5,0]
[null,"ST","586995","Hydrion Insta-Chek pH Test Papers - Set of 2",14.39,10.07,0]
[null,"EA","1368247","Innovating Science Chemical Observation Set",147.59,103.31,0]
[null,"EA","579140","Rapitest Soil Test Kit",18.39,12.87,0]
[null,null,null,"SCIENCE EDUCATION - DISSECTION INSTRUMENTS"]
[null,"EA","564410","DR Instruments 65 Series Student Dissection Kit, Tri-Fold Vinyl Case, 8 Pieces",11.19,7.83,{"$f":"IF(F77=\"\",0,A77*F77)","v":0}]
[null,"PK","573204","DR Instruments Disposable Scalpel Blades, Number 22 Blade, Pack of 10",7.89,5.52,0]
[null,"EA","583122","DR Instruments Dissecting Scissors, Student Grade, Fine Point, 4-1/2 Inches",3.69,2.58,0]
[null,"EA","583239","DR Instruments Heavy Duty Scalpel Handle, Number 4, Stainless Steel",2.39,1.67,0]
[null,"EA","583149","DR Instruments Medium Point Forceps with Straight Tips, Student Grade",2.4900000000000002,1.74,0]
[null,"EA","565588","DR Instruments Scapel, Student Grade, 1-1/2 Inches",2.39,1.67,0]
[null,"EA","576909","Frey Scientific 64 Series Basic Dissection Kit",8.59,6.01,0]
[null,"EA","583260","Frey Scientific All-Purpose Shears",5.39,3.77,0]
[null,"ST","1445420","Frey Scientific Classroom Dissection Set",173.29,121.3,0]
[null,"EA","563347","Frey Scientific Flex Pad Dissection Pan",13.99,9.7899999999999991,0]
[null,"EA","583131","Frey Scientific Student Grade Fine Point Forceps with Straight Ends",2.39,1.67,0]
[null,"EA","583185","Frey Scientific Surgical Dissecting Scissors - Mayo Style",2.69,1.88,0]
[null,"EA","568859","Ginsberg Scientific Dissection Pan with Wax, 7 x 11 x 1-1/2 Inches, Aluminum",17.29,12.1,0]
[null,null,null,"SCIENCE EDUCATION - INSTRUMENTS/METERS"]
[null,"EA","181-2055","Delta Education Radiometer",17.89,12.52,{"$f":"IF(F91=\"\",0,A91*F91)","v":0}]
[null,"EA","360141","Didax Plastic Anemometer, Grades K to 12",47.19,33.03,0]
[null,"EA","1437190","Frey Scientific Deluxe Sling Psychrometer",79.290000000000006,55.5,0]
[null,"EA","1443333","Graham-Field OxyCheck Finger Pulse Oximeter",92.99,65.09,0]
[null,"EA","162-6331","Lamotte Tracer PockeTester 5-in-One Meter",333.29,233.3,0]
[null,"EA","1464859","Ohaus ST10 pH Pen Meter, 0.1 pH Resolution, 0.1 pH Accuracy",65.09,45.56,0]
[null,"EA","1464878","Ohaus ST300D-B Portable Oxygen Meter with IP54 Sets, Electrode Clip",457.99,320.58999999999997,0]
[null,"EA","530794","Science First Conductivity Tester",34.69,24.28,0]
[null,"EA","527267","Sper Scientific Mini Handheld Environmental Quality Meter",190.69,133.47999999999999,0]
[null,"EA","571910","United Scientific Bowles Stethoscope",12.39,8.67,0]
[null,"EA","1387083","United Scientific Economy Aneroid Barometer, 7-1/2 Dia in",45.99,32.19,0]
[null,null,null,"SCIENCE EDUCATION - LAB SAFETY"]
[null,"EA","1292842","DR Uniforms Economy Cloth Lab Coat, 42 Inches, Large, White",26.89,18.82,{"$f":"IF(F103=\"\",0,A103*F103)","v":0}]
[null,"EA","1292841","DR Uniforms Economy Cloth Lab Coat, 42 Inches, Medium, White",26.89,18.82,0]
[null,"EA","1292840","DR Uniforms Economy Cloth Lab Coat, 42 Inches, Small, White",26.89,18.82,0]
[null,"EA","1292843","DR Uniforms Economy Cloth Lab Coat, 42 Inches, X Large, White",26.89,18.82,0]
[null,"EA","589209","GSC Rubberized Cloth Aprons, 27 x 36 Inches",7.89,5.52,0]
[null,"PR","565561","Scienceware Clavies Autoclave Gloves",36.89,25.82,0]
[null,"EA","568217","Scienceware Hot Hands Hand Protector",26.79,18.75,0]
[null,"EA","576022","SureWerx Dyno-Mites Child-Size Safety Glasses",7.59,5.31,0]
[null,"EA","577924","SureWerx Economy Indirect Vent Chemical Splash Safety Goggle",3.89,2.72,0]
[null,"EA","527861","SureWerx Safety Glasses, Polycarbonate Lens",4.59,3.21,0]
[null,"EA","1368348","SureWerx X300 Safety Goggles - Clear Lens",2.19,1.53,0]
[null,null,null,"SCIENCE EDUCATION - LAB UTENSILS"]
[null,"PK","525527","Frey Scientific Glass Stirring Rods - 8 inch Length x 5 mm Diameter",6.59,4.6100000000000003,{"$f":"IF(F115=\"\",0,A115*F115)","v":0}]
[null,"EA","573087","Frey Scientific Thermometer Clamp",7.29,5.0999999999999996,0]
[null,null,null,"SCIENCE EDUCATION - LABWARE"]
[null,"PK","1439670","Frey Scientific Disposable Polystyrene Petri Dishes, 90 L x 15 W mm, Pack of 30",8.99,6.29,{"$f":"IF(F118=\"\",0,A118*F118)","v":0}]
[null,"PK","1292875","Frey Scientific Large Screw-Top Self-Standing Base Centrifuge Tube, 50 ml, Polypropylene, Pack of 50",19.190000000000001,13.43,0]
[null,"ST","1277807","Learning Resources Graduated Cylinders",34.69,24.28,0]
[null,"PK","593484","Pyrex Borosilicate Test Tubes - 20 x 150 mm - Pack of 72",89.39,62.57,0]
[null,"ST","574090","Pyrex Griffin Low Form Corning Beaker Set - Assorted Sizes - Set of 5",39.99,27.99,0]
[null,"ST","025-5420","United Scientific Economy Plastic Beaker, Set of 5",14.09,9.86,0]
[null,null,null,"SCIENCE EDUCATION - LIVING MATERIALS"]
[null,"EA","560828","Frey Scientific Classroom Seed Assortment",32.29,22.6,{"$f":"IF(F125=\"\",0,A125*F125)","v":0}]
[null,"EA","1292784","Penn-Plax Pro-Balance Fish Feeding Block - 7-Day - Each",3.29,2.2999999999999998,0]
[null,null,null,"SCIENCE EDUCATION - MAGNETS"]
[null,"EA","236459","Science Kit With Magnets",31.89,22.32,{"$f":"IF(F128=\"\",0,A128*F128)","v":0}]
[null,null,null,"SCIENCE EDUCATION - MANIPULATIVES"]
[null,"EA","564652","Frey Scientific Ballistics Car",73.790000000000006,51.65,{"$f":"IF(F130=\"\",0,A130*F130)","v":0}]
[null,"ST","528032","Frey Scientific Cylindrical Equal Volume Set - Set of 4",18.489999999999998,12.94,0]
[null,"ST","578647","Frey Scientific Tuning Fork Sets w/Mallet - Set of 8",53.79,37.65,0]
[null,"ST","082176","Roylco True to Life Human X-Rays - Set of 18",41.99,29.39,0]
[null,"EA","530725","Science First Density Identity Set",72.19,50.53,0]
[null,null,null,"SCIENCE EDUCATION - MICROSCOPE SLIDES"]
[null,"PK","190-2977","Delta Education Glass Microscope Slides - Pack of 72",3.99,2.79,{"$f":"IF(F136=\"\",0,A136*F136)","v":0}]
[null,"PK","569906","Rinzl Plastic Cover Slips - 22 x 22 millimeters - Pack of 100",4.99,3.49,0]
[null,"ST","193-5840","United Science Prepared Slides Classroom Set - Set of 100",316.58999999999997,221.61,0]
[null,"ST","193-7465","United Scientific Economy Basic Prepared Slides Set, Set of 25",71.19,49.83,0]
[null,null,null,"SCIENCE EDUCATION - MICROSCOPES"]
[null,"EA","131-3332","Frey Scientific Cordless Advanced Rechargeable LED Microscope",233.29,163.30000000000001,{"$f":"IF(F141=\"\",0,A141*F141)","v":0}]
[null,"EA","529298","Frey Scientific LED Digital Microscope",733.29,513.29999999999995,0]
[null,"EA","563278","Frey Scientific Variable Magnification Stereo Microscope - 20x and 40x",383.99,268.79000000000002,0]
[null,"EA","531260","National Optical Compact Student Microscope - Inclined Head - Coarse and Fine Focus - LED Illumination - Cordless",170.69,119.48,0]
[null,"EA","528600","National Optical Student Microscope - Monocular Head, 4x, 10x, 40xR Objectives, LED Illumination",279.99,195.99,0]
[null,"EA","1360896","United Scientific Microscope Starter Kit",35.89,25.12,0]
[null,null,null,"SCIENCE EDUCATION - MISC LAB SUPPLIES"]
[null,"PK","032-2629","Delta Education Magnetic Field Detection Compass, 4/5 Inch Diameter, Pack of 10",7.29,5.0999999999999996,{"$f":"IF(F148=\"\",0,A148*F148)","v":0}]
[null,"EA","530552","Durable Wind Up Meter Tape - 30 m",11.79,8.25,0]
[null,"EA","078-1099","Educational Insights Green Thumb Classroom Greenhouse",82.69,57.88,0]
[null,"EA","586323","LaMotte Soil Sampling Tube",52.69,36.880000000000003,0]
[null,"EA","573145","School Specialty All-Plastic Trundle Wheel",17.29,12.1,0]
[null,"EA","568421","United Scientific Economy Compass with Aluminum Case and Cord Loop, 1-1/2 Inches",3.69,2.58,0]
[null,null,null,"SCIENCE EDUCATION - MODELS"]
[null,"EA","562993","3B Scientific Disarticulated Skeleton, 53 Pieces",789.19,552.42999999999995,{"$f":"IF(F155=\"\",0,A155*F155)","v":0}]
[null,"EA","576338","3B Scientific Human Skull Model, 3 Pieces",216.59,151.61000000000001,0]
[null,"EA","576422","3B Scientific Student Heart Model, 2 Pieces",116.39,81.47,0]
[null,"EA","1296085","BRIGHT Atom Model - Student",62.79,43.95,0]
[null,"EA","025-9194","Delta Education Butterfly Life Cycle Specimen Model",41.59,29.11,0]
[null,"EA","1485315","Eisco 3-Dimensional Frog Dissection Model",226.69,158.68,0]
[null,"EA","1457400","Eisco Basic Human Skeleton Model - Rod Mounted",457.59,320.31,0]
[null,"EA","1457415","Eisco Fish Model - Carp - Life Size - 4 Parts",180.29,126.2,0]
[null,"EA","1457409","Eisco Human Torso Model Half Life Size, 12 Pieces",186.69,130.68,0]
[null,"PK","583665","Estes Alpha Rocket Bulk Pack - Set of 12",152.38999999999999,106.67,0]
[null,"EA","1302709","Frey Scientific Advanced Molecular Model Set - Set of 121 Pieces",70.59,49.41,0]
[null,"EA","590502","Frey Scientific Moment of Inertia Ring and Disc Set",42.19,29.53,0]
[null,"EA","531188","Frey Scientific Monocotyledon Stem Model",82.49,57.74,0]
[null,"EA","597880","Frey Scientific Protein Synthesis Manipulative Kit",408.39,285.87,0]
[null,"EA","130-7008","Human Model Skeleton 33\" Tall",106.09,74.260000000000005,0]
[null,"EA","087697","Learning Resources Cross-Section Animal Cell Model",25.09,17.559999999999999,0]
[null,"EA","034-2984","Learning Resources Cross-Section Human Brain Model",25.09,17.559999999999999,0]
[null,"EA","034-2973","Learning Resources Cross-Section Plant Cell Model",25.09,17.559999999999999,0]
[null,"EA","077013","Learning Resources Earth Cross-Section Foam Model",23.39,16.37,0]
[null,"EA","079090","Learning Resources Erupting Volcano Model",49.49,34.64,0]
[null,"EA","1288534","Learning Resources Foam Eye Cross-Section Model",25.09,17.559999999999999,0]
[null,"ST","1397805","Learning Resources Giant Magnetic Animal Cells, 18 Pieces",27.09,18.96,0]
[null,"EA","529267","Molymod Organic Chemistry Student Edition Molecular Model Set, Set of 112",27.19,19.03,0]
[null,"EA","30-1395","Neo/SCI Animal Cell Meiosis Models - Set of 12",116.19,81.33,0]
[null,"EA","30-1390","Neo/SCI Animal Cell Mitosis Models - Set of 8",88.39,61.87,0]
[null,"EA","1365147","Science First Moon Phase Model",49.89,34.92,0]
[null,"EA","573118","SI MFG Scientific Foam Flower Model, 19-1/2 in L X 19-1/2 in W X 15 in H",83.19,58.23,0]
[null,null,null,"SCIENCE EDUCATION - OPTICAL TOOLS"]
[null,"EA","067622","Educational Insights Vega 600 Telescope",122.69,85.88,{"$f":"IF(F183=\"\",0,A183*F183)","v":0}]
[null,"EA","531545","LaMotte MacroLens Magnifier",23.99,16.79,0]
[null,"EA","086240","Multi-Purpose 2.5x Magnifier, 4\" Lens",13.89,9.7200000000000006,0]
[null,"PK","590298","Science First Economy Spectroscope Kit, Pack of 15",59.59,41.71,0]
[null,"ST","573159","United Scientific Acrylic Prisms - Set of 6",42.49,29.74,0]
[null,null,null,"SCIENCE EDUCATION - PRESERVED SPECIMENS"]
[null,"EA","596736","Frey Choice Preserved Fetal Pig - Double Injected - 11 to 13 inches",27.69,19.38,{"$f":"IF(F189=\"\",0,A189*F189)","v":0}]
[null,"EA","597885","Frey Choice Preserved Fetal Pig - Double Injected - 13+ inches",28.09,19.66,0]
[null,"EA","572522","Frey Choice Preserved Fetal Pig - Double Injected - 7 to 11 inches",28.49,19.940000000000001,0]
[null,"EA","572516","Frey Choice Preserved Fetal Pig - Not Injected - 7 to 11 in",23.09,16.16,0]
[null,"PK","596769","Frey Choice Preserved Fetal Pigs - Not Injected - 5 to 7 inches - Pack of 10",77.59,54.31,0]
[null,"PK","572531","Frey Choice Preserved Grass Frogs - 4.5 - 5 inches - Pack of 10",52.79,36.950000000000003,0]
[null,"PK","598116","Frey Choice Preserved Grass Frogs - 4.5 - 5 inches - Pail of 10",55.09,38.56,0]
[null,"EA","528985","Frey Scientific Animal Kingdom Survey Display - Set of 49",415.99,291.19,0]
[null,"EA","572498","Frey Scientific Choice Formaldehyde Base Solution Preserved Dissection Survey Pack, Large, 1 Each of 6 Specimens",19.190000000000001,13.43,0]
[null,"EA","572495","Frey Scientific Choice Formaldehyde Base Solution Preserved Dissection Survey Pack, Medium, 1 Each of 6 Specimens",14.09,9.86,0]
[null,"PK","596925","Frey Scientific Choice Plain Injected Preserved Beef Organ Eye, Pack of 10",28.99,20.29,0]
[null,"PK","596646","Frey Scientific Choice Plain Injected Preserved Bullfrog, 5 - 6 in Vacuum, Pack of 10",139.19,97.43,0]
[null,"PK","596880","Frey Scientific Choice Plain Injected Preserved Sheep Organ Brain Without Hypo, Pack of 10",166.69,116.68,0]
[null,"PK","596883","Frey Scientific Choice Preserved Sheep Organ Heart, Pack of 10",51.29,35.9,0]
[null,"PK","597159","Frey Select Formaldehyde-Free Preserved Grass Frogs - 4 5 inches - Pack of 10",79.89,55.92,0]
[null,"PK","150-0905","Pellets Inc Barn Owl Pellets, Large 1.5 to 3 Inches, Pack of 6",29.29,20.5,0]
[null,null,null,"SCIENCE EDUCATION - ROBOTICS/DRONES/CODING"]
[null,"EA","2004566","American Scientific Edu-Drone",141.29,98.9,{"$f":"IF(F206=\"\",0,A206*F206)","v":0}]
[null,"EA","1595629","American Scientific IQ KEY Perfect 1000 Robotic STEM Educational Kit",166.39,116.47,0]
[null,"EA","1595628","American Scientific IQ KEY Perfect 400 Robotic STEM Educational Kit",97.09,67.959999999999994,0]
[null,"EA","1582547","American Scientific IQ KEY Perfect 600 Robotic STEM Educational Kit",103.99,72.790000000000006,0]
[null,"EA","1443163","BotBrain Advanced Robotics Set",489,342.3,0]
[null,"KT","2012051","EISCO Sense Robot Kit",318.69,223.08,0]
[null,"EA","2002334","Hamilton Buhl Edison Educational Robot Kit, EACH",89.99,62.99,0]
[null,"PK","2002332","Hamilton Buhl Edison Educational Robot Kit, Pack of 10",899.89,629.91999999999996,0]
[null,"PK","2002331","Hamilton Buhl Edison Educational Robot Kit, Pack of 20",1799.89,1259.92,0]
[null,"PK","2002330","Hamilton Buhl Edison Educational Robot Kit, Pack of 3",269.99,188.99,0]
[null,"PK","2002333","Hamilton Buhl Edison Educational Robot Kit, Pack of 30",2699.79,1889.85,0]
[null,"EA","2002528","Hamilton Buhl Robo Arm Kit",287.29000000000002,201.1,0]
[null,"PK","2002336","HamiltonBuhl Edison Educational Robot Kit, Pack of 2 Robots and Accessories",179.99,125.99,0]
[null,"EA","2002335","HamiltonBuhl STEAM Education Boost-R-Bots Robot Kit",288.29000000000002,201.8,0]
[null,"EA","1603663","Learning Resources Botley the Coding Robot",95.99,67.19,0]
[null,"EA","1603666","Learning Resources Botley the Coding Robot Accessory Set",29.89,20.92,0]
[null,"EA","1603667","Learning Resources Botley the Coding Robot Classroom Set",386.69,270.68,0]
[null,"EA","1603665","Learning Resources Botley the Coding Robot Starter Set",77.290000000000006,54.1,0]
[null,"EA","1601761","Learning Resources Code and Go Mouse Board Game",22.19,15.53,0]
[null,"ST","1601691","Learning Resources Code and Go Robot Mouse Class Set",235.99,165.19,0]
[null,"EA","1601762","Learning Resources Code and Go Robot Mouse Math",22.19,15.53,0]
[null,"EA","1533500","Learning Resources Programmable Mouse STEM  Activity Set",62.39,43.67,0]
[null,"EA","1533501","Learning Resources Programmable STEM Mouse",36.590000000000003,25.61,0]
[null,"ST","2013791","Pre-coding Penguin Activity Cards (Set of 16)",31.99,22.39,0]
[null,"ST","2013790","Pre-coding Penguin Stones (Set of 18)",39.99,27.99,0]
[null,"EA","1604973","Thames &amp; Kosmos Geckobot",59.99,41.99,0]
[null,"EA","1604974","Thames &amp; Kosmos Gyrobot",59.99,41.99,0]
[null,"EA","1604976","Thames &amp; Kosmos Robotics Workshop",335.99,235.19,0]
[null,"EA","1589602","Young Scientists Club Funtastic Robotics - HURDLE",41.59,29.11,0]
[null,null,null,"SCIENCE EDUCATION - ROCKS/MINS/FOSSILS"]
[null,"ST","1401472","Frey Scientific Sedimentary, Metamorphic, and Igneous Rock Collection - Set of 45",90.89,63.62,{"$f":"IF(F236=\"\",0,A236*F236)","v":0}]
[null,"ST","563843","Scott Resources General Fossil Collection",25.49,17.84,0]
[null,"ST","111-2670","Scott Resources Mineral Study Kit",21.19,14.83,0]
[null,null,null,"SCIENCE EDUCATION - SCIENCE EARLY LEARNING"]
[null,"KT","1300553","American Scientific Energy Conversion Kit",139.59,97.71,{"$f":"IF(F240=\"\",0,A240*F240)","v":0}]
[null,"EA","1321222","Didax Biodegradability Kit, Grade 5+",180.19,126.13,0]
[null,"EA","563891","Hubbard Scientific Landform Demonstration Kit, Grades 5 and up",88.99,62.29,0]
[null,null,null,"SCIENCE EDUCATION - SCIENCE EARTH SCIENCE"]
[null,"EA","580294","WaterWorks SenSafe School Water Quality Test Kit",129.79,90.85,{"$f":"IF(F244=\"\",0,A244*F244)","v":0}]
[null,null,null,"SCIENCE EDUCATION - SCIENCE GENERAL"]
[null,"EA","1330025","Glo-Germ Experiment Kit, 8 Ounce Gel, 1.9 Ounce Powder",87.99,61.59,{"$f":"IF(F246=\"\",0,A246*F246)","v":0}]
[null,"EA","577608","Innovating Science Polyurethane Foam Demonstration Kit",68.19,47.73,0]
[null,"EA","579682","Orion Scientific CS1 the Case of Lois McArthur Kit, 24 Student",104.09,72.86,0]
[null,null,null,"SCIENCE EDUCATION - SCIENCE LIFE SCIENCE"]
[null,"EA","1016709","61 Series Student Dissection Kit with Replaceable Blade Scalpel - Zippered Case",12.29,8.6,{"$f":"IF(F250=\"\",0,A250*F250)","v":0}]
[null,"EA","1573509","American Scientific Illuminated Ant Habitat Science Kit",26.39,18.47,0]
[null,"EA","595080","Frey Scientific Aneroid Student Blood Pressure Kit",25.29,17.7,0]
[null,"EA","597024","Frey Scientific Mini-Guide to Frog Dissection",8.99,6.29,0]
[null,"EA","597048","Frey Scientific Mini-Guide to Mammalian Brain Dissection",8.99,6.29,0]
[null,"EA","597054","Frey Scientific Mini-Guide to Mammalian Eye Dissection",8.99,6.29,0]
[null,"EA","597045","Frey Scientific Mini-Guide to Mammalian Heart Dissection",8.99,6.29,0]
[null,"EA","597039","Frey Scientific Mini-Guide to Pig Dissection",8.99,6.29,0]
[null,"EA","1399022","Innovating Science Enzymes and the Process of Digestion Kit",84.29,59,0]
[null,"EA","1295725","Innovating Science Forensic Chemistry of Hair Analysis Kit",73.39,51.37,0]
[null,"EA","1399023","Innovating Science Mendelian Genetics Kit",88.39,61.87,0]
[null,"EA","1500950","LAB-AIDS Basic Blood Typing Kit",140.09,98.06,0]
[null,"EA","531478","Lab-Aids Decomposition Kit",196.39,137.47,0]
[null,"EA","531062","Lab-Aids Food Nutrient Analysis Kit",257.58999999999997,180.31,0]
[null,"EA","586092","Lab-Aids Peppered Moth Evolution Kit",98.29,68.8,0]
[null,"EA","529079","Sea Floor Simulation Kit",221.89,155.32,0]
[null,"EA","1399008","Stick to Science Genetics Cards - Set of 36",10.39,7.27,0]
[null,"EA","1321179","Student Bacteria Experiment Kit",50.49,35.340000000000003,0]
[null,null,null,"SCIENCE EDUCATION - SCIENCE PHYSICAL SCIENCE"]
[null,"EA","020-8230","Delta Education Solar Hot Air Balloon",3.69,2.58,{"$f":"IF(F269=\"\",0,A269*F269)","v":0}]
[null,"EA","560962","Electricity Discovery Kit",14.69,10.28,0]
[null,"EA","1502459","Frey Scientific Giant Periodic Chart",157.79,110.45,0]
[null,"PK","1502461","Frey Scientific Notebook Periodic Chart, 8.75 L x 11 W in, Pad of 50",12.19,8.5299999999999994,0]
[null,"EA","1325439","Lab-Aids Identification of Chemical Reactions Kit",230.59,161.41,0]
[null,"EA","193-4682","Pulleys in Motion Set",88.09,61.66,0]
[null,"EA","1360728","Snap Circuits Green: Alternative Energy Kit",79.39,55.57,0]
[null,null,null,"SCIENCE EDUCATION - STORAGE/SUPPORTS"]
[null,"PK","594411","Dynalon Utility Pan, 14-1/2 X 12 X 6-1/4 in, 12 qt, Low Density Polyethylene, Pack of 4",26.49,18.54,{"$f":"IF(F277=\"\",0,A277*F277)","v":0}]
[null,"EA","562765","Frey Scientific Draining and Drying Rack, 19 X 18-1/2 X 7-1/8 in, Steel",122.69,85.88,0]
[null,"EA","584802","Growers Supply Plant Cart, Tan, 12 x 27 x 74 in",768.59,538.01,0]
[null,"ST","574107","GSC Support Ring Stand and Rings, 5 X 8 in Base, 20 in Rod, Includes 3 Rings",38.69,27.08,0]
[null,"EA","593836","United Scientific Hydrometer and Test Tube Rack",4.8899999999999997,3.42,0]
[null,null,null,"SCIENCE EDUCATION - THERMOMETERS"]
[null,"EA","200-1097","Delta Education V-Back Metal Thermometers - Fahrenheit/Celsius Dual Scale",2.4900000000000002,1.74,{"$f":"IF(F283=\"\",0,A283*F283)","v":0}]
[null,"EA","1017419","Enviro-Safe Spirit Total Immersion Thermometer, 300 mm, -20 to 150 C",17.190000000000001,12.03,0]
[null,"EA","573696","Penn-Plax Digital Aquarium Thermometer",4.6900000000000004,3.28,0]
[null,null,null,null,null,null,{"$f":"IF(F286=\"\",0,A286*F286)","v":0}]
[null,null,null,null,null,null,{"$f":"IF(F287=\"\",0,A287*F287)","v":0}]
[null,null,null,null,null,null,0]
[null,null,null,null,null,null,0]
[null,null,null,null,null,null,0]
[null,null,null,null,null,null,0]
[null,null,null,null,null,null,0]
["School Specialty Order Total",null,null,null,null,null,{"$f":"SUM(G20:G292)","v":0}]

{"sheet":"Instructions","index":1,"n_rows":76,"n_cols":1,"rows_kept":76,"cut":false,"hidden":false,"merged":[]}
["EXCEL SETTINGS.  To fully utilize the budget templates, please make the following adjustments to your Excel Security Settings:"]
["In Excel 2003"]
["From the TOOLS menu, select MACRO"]
["Select SECURITY"]
["Make sure Security Level is set at MEDIUM"]
["With this setting, you will be given the options to “disable”, “enable” or get “more info” on the macro.  Enabling the macro will allow you to use the automatic sort routine for the School Specialty Order."]
[]
["In Excel 2007 / 2010"]
["When opening the file you may see"]
["the following warning:"]
[]
["Click on the OPTIONS button and then select ENABLE THIS CONTENT"]
["Enabling the macro will allow you to use the automatic sort routine for the School Specialty Order."]
[]
["If you do not see a warning you may need to change your security settings."]
["From the Office Button in the top left corner"]
[]
[]
["Select Excel Options"]
[]
[]
["Select TRUST CENTER then TRUST CENTER SETTINGS…"]
[]
[]
[]
[]
[]
[]
[]
[]
[]
[]
[]
[]
[]
[]
[]
[]
["Select MACRO SETTINGS and make sure \"Disable all macros with notification\" is selected"]
[]
[]
[]
[]
[]
[]
[]
[]
[]
[]
[]
[]
["If when opening the template you receive a dialog box asking to check the certificate of authenticity, please do the following:"]
["Open Excel"]
["From the TOOLS menu, select MACRO"]
["Select SECURITY"]
["Select TRUSTED PUBLISHERS"]
["Check the box titled \"Trust Access to Visual Basic Project\""]
["Click OK."]
[]
["Upon opening the template:"]
["Click and do a \"Save as\" to an *.xls or *.xlsx"]
["This will preserve your template and allow you you to use it over and over again."]
[]
["Using the School Specialty Order Form"]
["Enter the quantity for each item you wish to order"]
["Be sure to press “Enter” after the final entry"]
["Go to the TOP of the form and click on the “School Specialty” logo to sort.  This will move all of the items ordered to the top of the form."]
["You may continue to select items and sort as many times as necessary."]
["If the file does not sort when you click on the “School Specialty” logo, press “Enter” and try again.  It should then perform the sort."]
[]
["Once you have completely finished ordring and have sorted for the last time:"]
["Click on the School Bus icon.  This will delete all the other lines on the requesition form that you have not used"]
["Depending on the speed of your computer, this may take a minute or two.  Your page may \"flicker\", this just means it is working."]
[]
["To print a copy:"]
["Simply hit your print button.  "]